[Event "Titled Tuesday Blitz May 16 Early 2023"]
[White "Filgueira, Hernan"]
[Black "Barbot, Pierre"]
[WhiteFideId "101770"]
[BlackFideId "663727"]
[WhiteElo "2363"]
[BlackElo "2431"]
[Result "1-0"]
[Round "02"]
[TimeControl "180+2"]
[Date "2023.05.16"]
[WhiteClock "0:00:16"]
[BlackClock "0:00:00"]

1. c4 {[%clk 0:02:59]}  Nf6 {[%clk 0:02:58]} 2. Nc3 {[%clk 0:02:59]}  e5 {[%clk 0:02:56]} 3. Nf3 {[%clk 0:02:58]}  Nc6 {[%clk 0:02:55]} 4. a3 {[%clk 0:02:58]}  d5 {[%clk 0:02:50]} 5. cxd5 {[%clk 0:02:58]}  Nxd5 {[%clk 0:02:51]} 6. Qc2 {[%clk 0:02:58]}  Be6 {[%clk 0:02:44]} 7. e3 {[%clk 0:02:57]}  a6 {[%clk 0:02:20]} 8. b4 {[%clk 0:02:48]}  Be7 {[%clk 0:02:07]} 9. Bb2 {[%clk 0:02:47]}  O-O {[%clk 0:02:04]} 10. Be2 {[%clk 0:02:45]}  Kh8 {[%clk 0:01:46]} 11. d3 {[%clk 0:02:38]}  f5 {[%clk 0:01:45]} 12. O-O {[%clk 0:02:38]}  f4 {[%clk 0:01:37]} 13. Nxd5 {[%clk 0:02:32]}  Qxd5 {[%clk 0:01:36]} 14. Rad1 {[%clk 0:02:29]}  Bf6 {[%clk 0:01:30]} 15. Nd2 {[%clk 0:02:22]}  Rad8 {[%clk 0:01:24]} 16. Ne4 {[%clk 0:02:21]}  Be7 {[%clk 0:01:13]} 17. Bf3 {[%clk 0:02:18]}  Qd7 {[%clk 0:01:11]} 18. Nc5 {[%clk 0:02:14]}  Bxc5 {[%clk 0:01:11]} 19. Qxc5 {[%clk 0:02:12]}  Bf5 {[%clk 0:00:59]} 20. Bxc6 {[%clk 0:02:06]}  Qxc6 {[%clk 0:00:45]} 21. Qxe5 {[%clk 0:02:05]}  Qg6 {[%clk 0:00:44]} 22. exf4 {[%clk 0:01:43]}  Rfe8 {[%clk 0:00:36]} 23. Qxc7 {[%clk 0:01:30]}  Rd7 {[%clk 0:00:32]} 24. Qc3 {[%clk 0:01:26]}  Bh3 {[%clk 0:00:29]} 25. g3 {[%clk 0:01:21]}  Bxf1 {[%clk 0:00:16]} 26. Kxf1 {[%clk 0:01:20]}  Qh5 {[%clk 0:00:14]} 27. Re1 {[%clk 0:01:12]}  Red8 {[%clk 0:00:13]} 28. Kg2 {[%clk 0:01:10]}  Qd5+ {[%clk 0:00:10]} 29. Kg1 {[%clk 0:01:07]}  Qxd3 {[%clk 0:00:10]} 30. Qxd3 {[%clk 0:01:04]}  Rxd3 {[%clk 0:00:11]} 31. Re7 {[%clk 0:01:04]}  R3d7 {[%clk 0:00:10]} 32. Re6 {[%clk 0:01:04]}  Kg8 {[%clk 0:00:10]} 33. Be5 {[%clk 0:01:02]}  Kf7 {[%clk 0:00:10]} 34. Rb6 {[%clk 0:01:02]}  Rc8 {[%clk 0:00:10]} 35. b5 {[%clk 0:01:00]}  axb5 {[%clk 0:00:07]} 36. Rxb5 {[%clk 0:01:00]}  Ra8 {[%clk 0:00:07]} 37. Rb3 {[%clk 0:01:00]}  g6 {[%clk 0:00:06]} 38. Kg2 {[%clk 0:01:00]}  Ke6 {[%clk 0:00:06]} 39. g4 {[%clk 0:01:00]}  Kd5 {[%clk 0:00:05]} 40. Kf3 {[%clk 0:01:00]}  Kc6 {[%clk 0:00:06]} 41. f5 {[%clk 0:00:59]}  gxf5 {[%clk 0:00:05]} 42. gxf5 {[%clk 0:00:59]}  Rd5 {[%clk 0:00:06]} 43. Re3 {[%clk 0:00:56]}  Rda5 {[%clk 0:00:05]} 44. Bb2 {[%clk 0:00:55]}  Rxf5+ {[%clk 0:00:04]} 45. Ke2 {[%clk 0:00:54]}  Rh5 {[%clk 0:00:03]} 46. h3 {[%clk 0:00:54]}  Rg8 {[%clk 0:00:02]} 47. Re6+ {[%clk 0:00:48]}  Kd7 {[%clk 0:00:02]} 48. Re3 {[%clk 0:00:48]}  b5 {[%clk 0:00:02]} 49. Bc3 {[%clk 0:00:47]}  Kc6 {[%clk 0:00:02]} 50. Bb4 {[%clk 0:00:47]}  Kd5 {[%clk 0:00:02]} 51. Rd3+ {[%clk 0:00:47]}  Kc4 {[%clk 0:00:02]} 52. Rc3+ {[%clk 0:00:48]}  Kd4 {[%clk 0:00:02]} 53. Re3 {[%clk 0:00:48]}  Kd5 {[%clk 0:00:02]} 54. Rd3+ {[%clk 0:00:46]}  Ke6 {[%clk 0:00:03]} 55. Rd6+ {[%clk 0:00:45]}  Kf7 {[%clk 0:00:03]} 56. Rd3 {[%clk 0:00:45]}  Re5+ {[%clk 0:00:02]} 57. Kf1 {[%clk 0:00:45]}  Kg6 {[%clk 0:00:02]} 58. Bc3 {[%clk 0:00:44]}  Re6 {[%clk 0:00:02]} 59. Rf3 {[%clk 0:00:43]}  Kh5 {[%clk 0:00:01]} 60. Bb4 {[%clk 0:00:42]}  Rg5 {[%clk 0:00:01]} 61. Rf7 {[%clk 0:00:41]}  h6 {[%clk 0:00:01]} 62. Bd2 {[%clk 0:00:40]}  Rge5 {[%clk 0:00:01]} 63. Be3 {[%clk 0:00:40]}  Rd5 {[%clk 0:00:01]} 64. Kg2 {[%clk 0:00:39]}  Rd3 {[%clk 0:00:01]} 65. Rf5+ {[%clk 0:00:39]}  Kg6 {[%clk 0:00:01]} 66. Rxb5 {[%clk 0:00:39]}  Rxa3 {[%clk 0:00:01]} 67. Kf3 {[%clk 0:00:38]}  Rf6+ {[%clk 0:00:01]} 68. Ke2 {[%clk 0:00:38]}  Re6 {[%clk 0:00:01]} 69. h4 {[%clk 0:00:37]}  Ra4 {[%clk 0:00:01]} 70. h5+ {[%clk 0:00:37]}  Kf7 {[%clk 0:00:02]} 71. Rb7+ {[%clk 0:00:37]}  Kg8 {[%clk 0:00:02]} 72. Kf3 {[%clk 0:00:35]}  Rf6+ {[%clk 0:00:02]} 73. Ke2 {[%clk 0:00:35]}  Re6 {[%clk 0:00:02]} 74. Rc7 {[%clk 0:00:34]}  Rf6 {[%clk 0:00:01]} 75. Rd7 {[%clk 0:00:34]}  Ra5 {[%clk 0:00:02]} 76. Bd4 {[%clk 0:00:32]}  Re6+ {[%clk 0:00:01]} 77. Kf3 {[%clk 0:00:31]}  Rxh5 {[%clk 0:00:02]} 78. Rg7+ {[%clk 0:00:31]}  Kf8 {[%clk 0:00:03]} 79. Rd7 {[%clk 0:00:29]}  Rf5+ {[%clk 0:00:03]} 80. Kg2 {[%clk 0:00:29]}  Rg6+ {[%clk 0:00:03]} 81. Kf1 {[%clk 0:00:29]}  h5 {[%clk 0:00:03]} 82. Be3 {[%clk 0:00:28]}  Kg8 {[%clk 0:00:03]} 83. Rd8+ {[%clk 0:00:26]}  Kh7 {[%clk 0:00:03]} 84. Rd7+ {[%clk 0:00:26]}  Rg7 {[%clk 0:00:03]} 85. Rd6 {[%clk 0:00:26]}  Kg8 {[%clk 0:00:03]} 86. Bd4 {[%clk 0:00:25]}  Rgf7 {[%clk 0:00:02]} 87. Rg6+ {[%clk 0:00:24]}  Kf8 {[%clk 0:00:03]} 88. Rh6 {[%clk 0:00:24]}  Ke8 {[%clk 0:00:02]} 89. Be3 {[%clk 0:00:23]}  Kd7 {[%clk 0:00:02]} 90. Ke2 {[%clk 0:00:23]}  Re7 {[%clk 0:00:02]} 91. Kd3 {[%clk 0:00:23]}  Re6 {[%clk 0:00:03]} 92. Rh7+ {[%clk 0:00:22]}  Kc6 {[%clk 0:00:03]} 93. Bd4 {[%clk 0:00:22]}  Kd5 {[%clk 0:00:03]} 94. Rd7+ {[%clk 0:00:21]}  Rd6 {[%clk 0:00:03]} 95. Rh7 {[%clk 0:00:19]}  Rg6 {[%clk 0:00:03]} 96. Be3 {[%clk 0:00:19]}  Ke6 {[%clk 0:00:03]} 97. Ke2 {[%clk 0:00:19]}  Kf6 {[%clk 0:00:03]} 98. Rb7 {[%clk 0:00:18]}  Ke6 {[%clk 0:00:02]} 99. f4 {[%clk 0:00:18]}  Rd5 {[%clk 0:00:02]} 100. Kf3 {[%clk 0:00:18]}  Kf5 {[%clk 0:00:02]} 101. Rf7+ {[%clk 0:00:18]}  Ke6 {[%clk 0:00:02]} 102. Rh7 {[%clk 0:00:18]}  Ra5 {[%clk 0:00:02]} 103. Ke4 {[%clk 0:00:18]}  Ra4+ {[%clk 0:00:02]} 104. Bd4 {[%clk 0:00:19]}  Rb4 {[%clk 0:00:02]} 105. f5+ {[%clk 0:00:19]}  Kd6 {[%clk 0:00:01]} 106. fxg6 {[%clk 0:00:19]}  Ke6 {[%clk 0:00:01]} 107. g7 {[%clk 0:00:19]}  Kf7 {[%clk 0:00:00]} 108. Rh8 {[%clk 0:00:16]} 1-0


[Site "https://www.chess.com"]

[Event "Titled Tuesday Blitz May 16 Early 2023"]
[White "Fajdetic, Hrvoje"]
[Black "surrenderPLS"]
[WhiteFideId "14501945"]
[WhiteElo "2185"]
[BlackElo "2532"]
[Result "0-1"]
[Round "02"]
[TimeControl "180+2"]
[Date "2023.05.16"]
[WhiteClock "0:00:07"]
[BlackClock "0:01:27"]

1. d4 {[%clk 0:02:56]}  Nf6 {[%clk 0:02:59]} 2. Bf4 {[%clk 0:02:55]}  d5 {[%clk 0:02:58]} 3. e3 {[%clk 0:02:55]}  c5 {[%clk 0:02:53]} 4. Nc3 {[%clk 0:02:55]}  e6 {[%clk 0:02:32]} 5. Nb5 {[%clk 0:02:53]}  Na6 {[%clk 0:02:32]} 6. c3 {[%clk 0:02:52]}  Be7 {[%clk 0:02:29]} 7. a4 {[%clk 0:02:52]}  O-O {[%clk 0:02:29]} 8. Nf3 {[%clk 0:02:51]}  Nh5 {[%clk 0:02:28]} 9. Be5 {[%clk 0:02:41]}  f6 {[%clk 0:02:21]} 10. Bg3 {[%clk 0:02:40]}  Nxg3 {[%clk 0:02:14]} 11. hxg3 {[%clk 0:02:41]}  Nc7 {[%clk 0:02:00]} 12. Bd3 {[%clk 0:02:37]}  g6 {[%clk 0:01:58]} 13. Qc2 {[%clk 0:02:31]}  Kg7 {[%clk 0:01:55]} 14. Nxc7 {[%clk 0:01:39]}  Qxc7 {[%clk 0:01:54]} 15. Rh2 {[%clk 0:01:23]}  cxd4 {[%clk 0:01:32]} 16. exd4 {[%clk 0:01:24]}  e5 {[%clk 0:01:32]} 17. Be2 {[%clk 0:00:18]}  e4 {[%clk 0:01:31]} 18. Nd2 {[%clk 0:00:14]}  e3 {[%clk 0:01:31]} 19. Nf3 {[%clk 0:00:12]}  exf2+ {[%clk 0:01:30]} 20. Kxf2 {[%clk 0:00:12]}  Bd6 {[%clk 0:01:30]} 21. Rh3 {[%clk 0:00:12]}  Bxh3 {[%clk 0:01:30]} 22. gxh3 {[%clk 0:00:13]}  Bxg3+ {[%clk 0:01:30]} 23. Kg2 {[%clk 0:00:14]}  Rae8 {[%clk 0:01:30]} 24. Bd3 {[%clk 0:00:13]}  Qf4 {[%clk 0:01:27]} 25. Rf1 {[%clk 0:00:11]}  Bh4 {[%clk 0:01:27]} 26. Nh2 {[%clk 0:00:10]}  Qg3+ {[%clk 0:01:27]} 27. Kh1 {[%clk 0:00:10]}  Qxh3 {[%clk 0:01:26]} 28. Rf3 {[%clk 0:00:09]}  Re1+ {[%clk 0:01:23]} 29. Bf1 {[%clk 0:00:09]}  Qxf3+ {[%clk 0:01:18]} 30. Nxf3 {[%clk 0:00:09]}  Rxf1+ {[%clk 0:01:19]} 31. Kg2 {[%clk 0:00:09]}  Rf2+ {[%clk 0:01:19]} 32. Qxf2 {[%clk 0:00:09]}  Bxf2 {[%clk 0:01:20]} 33. Kxf2 {[%clk 0:00:09]}  h5 {[%clk 0:01:21]} 34. Kg3 {[%clk 0:00:09]}  g5 {[%clk 0:01:21]} 35. Nd2 {[%clk 0:00:09]}  Kg6 {[%clk 0:01:21]} 36. Nb3 {[%clk 0:00:10]}  b6 {[%clk 0:01:21]} 37. a5 {[%clk 0:00:09]}  f5 {[%clk 0:01:22]} 38. axb6 {[%clk 0:00:09]}  f4+ {[%clk 0:01:23]} 39. Kf2 {[%clk 0:00:08]}  axb6 {[%clk 0:01:24]} 40. Nc1 {[%clk 0:00:09]}  g4 {[%clk 0:01:25]} 41. Nd3 {[%clk 0:00:09]}  g3+ {[%clk 0:01:26]} 42. Kf3 {[%clk 0:00:10]}  Kg5 {[%clk 0:01:26]} 43. Ne5 {[%clk 0:00:10]}  Rf5 {[%clk 0:01:24]} 44. Nc6 {[%clk 0:00:08]}  h4 {[%clk 0:01:24]} 45. Ne7 {[%clk 0:00:08]}  h3 {[%clk 0:01:24]} 46. b3 {[%clk 0:00:07]}  g2 {[%clk 0:01:23]} 47. Kf2 {[%clk 0:00:07]}  f3 {[%clk 0:01:23]} 48. Nxf5 {[%clk 0:00:07]}  Kxf5 {[%clk 0:01:24]} 49. c4 {[%clk 0:00:08]}  dxc4 {[%clk 0:01:25]} 50. bxc4 {[%clk 0:00:08]}  h2 {[%clk 0:01:25]} 51. c5 {[%clk 0:00:09]}  g1=Q+ {[%clk 0:01:26]} 52. Kxf3 {[%clk 0:00:07]}  h1=Q+ {[%clk 0:01:27]} 0-1


[Site "https://www.chess.com"]

[Event "Titled Tuesday Blitz May 16 Early 2023"]
[White "Arat, Ufuk Sezen"]
[Black "Llanos, Guillermo"]
[WhiteFideId "6309089"]
[BlackFideId "100358"]
[WhiteElo "2289"]
[BlackElo "2225"]
[Result "0-1"]
[Round "02"]
[TimeControl "180+2"]
[Date "2023.05.16"]
[WhiteClock "0:00:08"]
[BlackClock "0:00:22"]

1. e4 {[%clk 0:03:00]}  Nf6 {[%clk 0:02:44]} 2. e5 {[%clk 0:03:00]}  Nd5 {[%clk 0:02:41]} 3. d4 {[%clk 0:02:48]}  d6 {[%clk 0:02:40]} 4. Nf3 {[%clk 0:02:48]}  Bg4 {[%clk 0:02:37]} 5. Be2 {[%clk 0:02:47]}  e6 {[%clk 0:02:36]} 6. exd6 {[%clk 0:02:44]}  cxd6 {[%clk 0:02:35]} 7. h3 {[%clk 0:02:44]}  Bh5 {[%clk 0:02:34]} 8. c4 {[%clk 0:02:44]}  Nb6 {[%clk 0:02:33]} 9. b3 {[%clk 0:02:45]}  Be7 {[%clk 0:02:33]} 10. Nc3 {[%clk 0:02:44]}  O-O {[%clk 0:02:32]} 11. Bb2 {[%clk 0:02:44]}  d5 {[%clk 0:02:29]} 12. c5 {[%clk 0:02:41]}  Nc8 {[%clk 0:02:28]} 13. O-O {[%clk 0:02:41]}  Nc6 {[%clk 0:02:26]} 14. a3 {[%clk 0:02:37]}  Bf6 {[%clk 0:02:22]} 15. Nb1 {[%clk 0:02:27]}  Bxf3 {[%clk 0:02:17]} 16. Bxf3 {[%clk 0:02:27]}  N8e7 {[%clk 0:02:13]} 17. Nc3 {[%clk 0:02:21]}  Nxd4 {[%clk 0:02:10]} 18. b4 {[%clk 0:02:18]}  Nxf3+ {[%clk 0:01:59]} 19. Qxf3 {[%clk 0:02:17]}  Nc6 {[%clk 0:01:41]} 20. Qe2 {[%clk 0:01:26]}  Ne5 {[%clk 0:01:29]} 21. Nb5 {[%clk 0:01:17]}  Nc4 {[%clk 0:01:22]} 22. Bxf6 {[%clk 0:01:03]}  Qxf6 {[%clk 0:01:22]} 23. Rfd1 {[%clk 0:00:53]}  a6 {[%clk 0:01:16]} 24. Nd4 {[%clk 0:00:52]}  Rac8 {[%clk 0:01:06]} 25. a4 {[%clk 0:00:44]}  Rfd8 {[%clk 0:01:04]} 26. Rd2 {[%clk 0:00:37]}  Nxd2 {[%clk 0:01:03]} 27. Qxd2 {[%clk 0:00:37]}  e5 {[%clk 0:01:01]} 28. Nb3 {[%clk 0:00:38]}  d4 {[%clk 0:00:59]} 29. Na5 {[%clk 0:00:37]}  Rd7 {[%clk 0:00:56]} 30. Nc4 {[%clk 0:00:33]}  Rcd8 {[%clk 0:00:51]} 31. b5 {[%clk 0:00:32]}  e4 {[%clk 0:00:48]} 32. Re1 {[%clk 0:00:28]}  Qe6 {[%clk 0:00:39]} 33. Nb6 {[%clk 0:00:28]}  Rc7 {[%clk 0:00:37]} 34. Qf4 {[%clk 0:00:25]}  Re7 {[%clk 0:00:33]} 35. bxa6 {[%clk 0:00:18]}  bxa6 {[%clk 0:00:32]} 36. Rc1 {[%clk 0:00:18]}  d3 {[%clk 0:00:31]} 37. Qd2 {[%clk 0:00:17]}  e3 {[%clk 0:00:30]} 38. fxe3 {[%clk 0:00:17]}  Qxe3+ {[%clk 0:00:29]} 39. Qxe3 {[%clk 0:00:17]}  Rxe3 {[%clk 0:00:30]} 40. Kf2 {[%clk 0:00:14]}  Re2+ {[%clk 0:00:29]} 41. Kf1 {[%clk 0:00:15]}  Rc2 {[%clk 0:00:29]} 42. Rd1 {[%clk 0:00:08]}  Rxc5 {[%clk 0:00:26]} 43. Kf2 {[%clk 0:00:08]}  d2 {[%clk 0:00:25]} 44. Ke2 {[%clk 0:00:08]}  Rc2 {[%clk 0:00:25]} 45. a5 {[%clk 0:00:08]}  g6 {[%clk 0:00:22]} 46. Na4 {[%clk 0:00:08]} 0-1


[Site "https://www.chess.com"]

[Event "Titled Tuesday Blitz May 16 Early 2023"]
[White "Cupid, Kevin"]
[Black "Belov, Alexei"]
[WhiteFideId "7700512"]
[BlackFideId "4128206"]
[WhiteElo "2124"]
[BlackElo "2526"]
[Result "0-1"]
[Round "02"]
[TimeControl "180+2"]
[Date "2023.05.16"]
[WhiteClock "0:02:48"]
[BlackClock "0:02:16"]

1. d4 {[%clk 0:03:00]}  e6 {[%clk 0:03:00]} 2. Nf3 {[%clk 0:03:01]}  d5 {[%clk 0:02:59]} 3. c4 {[%clk 0:03:01]}  Nf6 {[%clk 0:02:59]} 4. Nc3 {[%clk 0:03:02]}  Be7 {[%clk 0:02:59]} 5. Bg5 {[%clk 0:03:02]}  Nbd7 {[%clk 0:02:58]} 6. Qc2 {[%clk 0:03:01]}  O-O {[%clk 0:02:58]} 7. e3 {[%clk 0:02:59]}  c5 {[%clk 0:02:58]} 8. dxc5 {[%clk 0:03:00]}  Nxc5 {[%clk 0:02:58]} 9. Bxf6 {[%clk 0:03:00]}  Bxf6 {[%clk 0:02:57]} 10. cxd5 {[%clk 0:03:00]}  exd5 {[%clk 0:02:56]} 11. Rd1 {[%clk 0:02:59]}  Be6 {[%clk 0:02:52]} 12. Be2 {[%clk 0:02:52]}  Rc8 {[%clk 0:02:49]} 13. Nd4 {[%clk 0:02:51]}  Ne4 {[%clk 0:02:43]} 14. Nxe6 {[%clk 0:02:50]}  fxe6 {[%clk 0:02:29]} 15. O-O {[%clk 0:02:50]}  Bxc3 {[%clk 0:02:19]} 16. bxc3 {[%clk 0:02:49]}  Nxc3 {[%clk 0:02:16]} 17. Rd2 {[%clk 0:02:48]} 0-1


[Site "https://www.chess.com"]

[Event "Titled Tuesday Blitz May 16 Early 2023"]
[White "Krsnik Cohar, Ivan Vihor"]
[Black "Szente Varga, Fruzsina"]
[WhiteFideId "14520044"]
[BlackFideId "712264"]
[WhiteElo "2414"]
[BlackElo "1994"]
[Result "1-0"]
[Round "02"]
[TimeControl "180+2"]
[Date "2023.05.16"]
[WhiteClock "0:00:02"]
[BlackClock "0:00:02"]

1. e4 {[%clk 0:01:04]}  Nf6 {[%clk 0:02:59]} 2. e5 {[%clk 0:01:03]}  Nd5 {[%clk 0:03:00]} 3. d4 {[%clk 0:01:02]}  d6 {[%clk 0:03:00]} 4. c4 {[%clk 0:01:03]}  Nb6 {[%clk 0:03:00]} 5. exd6 {[%clk 0:01:04]}  exd6 {[%clk 0:03:01]} 6. Nc3 {[%clk 0:01:04]}  Be7 {[%clk 0:03:02]} 7. Bd3 {[%clk 0:01:03]}  O-O {[%clk 0:03:02]} 8. Nge2 {[%clk 0:01:04]}  Bf6 {[%clk 0:03:02]} 9. Be3 {[%clk 0:01:02]}  Re8 {[%clk 0:03:02]} 10. Qd2 {[%clk 0:01:02]}  Nc6 {[%clk 0:03:02]} 11. O-O {[%clk 0:01:02]}  Bg4 {[%clk 0:02:55]} 12. f3 {[%clk 0:01:01]}  Bh5 {[%clk 0:02:56]} 13. b3 {[%clk 0:01:01]}  Bg6 {[%clk 0:02:26]} 14. Be4 {[%clk 0:01:01]}  Qd7 {[%clk 0:01:55]} 15. Rae1 {[%clk 0:00:53]}  Rad8 {[%clk 0:01:54]} 16. Nf4 {[%clk 0:00:53]}  Bh4 {[%clk 0:01:28]} 17. g3 {[%clk 0:00:52]}  Bf6 {[%clk 0:01:28]} 18. Bxg6 {[%clk 0:00:42]}  hxg6 {[%clk 0:01:28]} 19. Nfd5 {[%clk 0:00:42]}  Qh3 {[%clk 0:01:16]} 20. a4 {[%clk 0:00:39]}  Kh7 {[%clk 0:01:01]} 21. Nxf6+ {[%clk 0:00:32]}  gxf6 {[%clk 0:01:01]} 22. Ne4 {[%clk 0:00:30]}  Kg7 {[%clk 0:01:01]} 23. d5 {[%clk 0:00:15]}  Ne5 {[%clk 0:01:01]} 24. f4 {[%clk 0:00:15]}  Ng4 {[%clk 0:01:00]} 25. Bd4 {[%clk 0:00:15]}  Nd7 {[%clk 0:00:43]} 26. Qb2 {[%clk 0:00:07]}  Rh8 {[%clk 0:00:39]} 27. Re2 {[%clk 0:00:06]}  Rde8 {[%clk 0:00:39]} 28. Rfe1 {[%clk 0:00:05]}  Rxe4 {[%clk 0:00:31]} 29. Rxe4 {[%clk 0:00:06]}  Nxh2 {[%clk 0:00:31]} 30. Qg2 {[%clk 0:00:06]}  Qh5 {[%clk 0:00:28]} 31. Kf2 {[%clk 0:00:05]}  Ng4+ {[%clk 0:00:24]} 32. Kg1 {[%clk 0:00:06]}  Qf5 {[%clk 0:00:20]} 33. Bc3 {[%clk 0:00:05]}  Rh2 {[%clk 0:00:20]} 34. Qxh2 {[%clk 0:00:06]}  Nxh2 {[%clk 0:00:20]} 35. Kxh2 {[%clk 0:00:06]}  Qh5+ {[%clk 0:00:21]} 36. Kg2 {[%clk 0:00:07]}  Nc5 {[%clk 0:00:19]} 37. Re8 {[%clk 0:00:05]}  Nd3 {[%clk 0:00:17]} 38. R1e3 {[%clk 0:00:03]}  Nc5 {[%clk 0:00:16]} 39. Rc8 {[%clk 0:00:04]}  Nxb3 {[%clk 0:00:16]} 40. Ree8 {[%clk 0:00:04]}  Qh7 {[%clk 0:00:14]} 41. Rg8+ {[%clk 0:00:03]}  Qxg8 {[%clk 0:00:15]} 42. Bxf6+ {[%clk 0:00:04]}  Kh7 {[%clk 0:00:15]} 43. Rxg8 {[%clk 0:00:04]}  Kxg8 {[%clk 0:00:16]} 44. Bd8 {[%clk 0:00:05]}  c6 {[%clk 0:00:15]} 45. Be7 {[%clk 0:00:04]}  Nd2 {[%clk 0:00:11]} 46. dxc6 {[%clk 0:00:02]}  bxc6 {[%clk 0:00:11]} 47. Bxd6 {[%clk 0:00:03]}  Nxc4 {[%clk 0:00:12]} 48. Bc7 {[%clk 0:00:03]}  Kf8 {[%clk 0:00:12]} 49. Kf3 {[%clk 0:00:03]}  Ke7 {[%clk 0:00:12]} 50. Ke4 {[%clk 0:00:04]}  Kd7 {[%clk 0:00:13]} 51. Bb8 {[%clk 0:00:04]}  a6 {[%clk 0:00:13]} 52. Kd4 {[%clk 0:00:04]}  Nd2 {[%clk 0:00:12]} 53. Kc5 {[%clk 0:00:04]}  Nf1 {[%clk 0:00:13]} 54. Kb6 {[%clk 0:00:04]}  Nxg3 {[%clk 0:00:13]} 55. Kxa6 {[%clk 0:00:05]}  Kc8 {[%clk 0:00:13]} 56. Be5 {[%clk 0:00:05]}  Nf5 {[%clk 0:00:12]} 57. a5 {[%clk 0:00:05]}  Ne7 {[%clk 0:00:12]} 58. Kb6 {[%clk 0:00:05]}  Kd7 {[%clk 0:00:10]} 59. Kb7 {[%clk 0:00:04]}  Nd5 {[%clk 0:00:11]} 60. a6 {[%clk 0:00:05]}  f6 {[%clk 0:00:10]} 61. a7 {[%clk 0:00:06]}  fxe5 {[%clk 0:00:10]} 62. a8=Q {[%clk 0:00:06]}  exf4 {[%clk 0:00:11]} 63. Qc8+ {[%clk 0:00:06]}  Ke7 {[%clk 0:00:10]} 64. Qxc6 {[%clk 0:00:06]}  Nf6 {[%clk 0:00:10]} 65. Qc7+ {[%clk 0:00:05]}  Ke6 {[%clk 0:00:10]} 66. Qxf4 {[%clk 0:00:06]}  Nd5 {[%clk 0:00:10]} 67. Qg5 {[%clk 0:00:05]}  Ne7 {[%clk 0:00:09]} 68. Kc7 {[%clk 0:00:04]}  Kf7 {[%clk 0:00:10]} 69. Kd7 {[%clk 0:00:03]}  Nf5 {[%clk 0:00:10]} 70. Kc6 {[%clk 0:00:01]}  Nd4+ {[%clk 0:00:09]} 71. Kd5 {[%clk 0:00:02]}  Ne6 {[%clk 0:00:09]} 72. Qg4 {[%clk 0:00:02]}  Ng7 {[%clk 0:00:07]} 73. Ke5 {[%clk 0:00:01]}  Nf5 {[%clk 0:00:07]} 74. Qg5 {[%clk 0:00:01]}  Kg7 {[%clk 0:00:06]} 75. Qf6+ {[%clk 0:00:01]}  Kh6 {[%clk 0:00:07]} 76. Kf4 {[%clk 0:00:02]}  Kh7 {[%clk 0:00:04]} 77. Qg5 {[%clk 0:00:01]}  Kg7 {[%clk 0:00:04]} 78. Qg4 {[%clk 0:00:02]}  Kf6 {[%clk 0:00:04]} 79. Qf3 {[%clk 0:00:02]}  g5+ {[%clk 0:00:02]} 80. Kg4 {[%clk 0:00:02]} 1-0


[Site "https://www.chess.com"]

[Event "Titled Tuesday Blitz May 16 Early 2023"]
[White "Degenbaev, Aziz"]
[Black "Balint, Vilmos"]
[WhiteFideId "13802640"]
[BlackFideId "718050"]
[WhiteElo "2152"]
[BlackElo "2034"]
[Result "1/2-1/2"]
[Round "02"]
[TimeControl "180+2"]
[Date "2023.05.16"]
[WhiteClock "0:00:06"]
[BlackClock "0:01:22"]

1. e4 {[%clk 0:03:00]}  e6 {[%clk 0:02:50]} 2. d4 {[%clk 0:02:58]}  d5 {[%clk 0:02:51]} 3. Nc3 {[%clk 0:02:58]}  Bb4 {[%clk 0:02:51]} 4. e5 {[%clk 0:02:58]}  Ne7 {[%clk 0:02:50]} 5. Nf3 {[%clk 0:02:52]}  b6 {[%clk 0:02:49]} 6. a3 {[%clk 0:02:49]}  Bxc3+ {[%clk 0:02:49]} 7. bxc3 {[%clk 0:02:50]}  Ba6 {[%clk 0:02:49]} 8. Bxa6 {[%clk 0:02:48]}  Nxa6 {[%clk 0:02:50]} 9. Qd3 {[%clk 0:02:45]}  Nb8 {[%clk 0:02:49]} 10. a4 {[%clk 0:02:42]}  Nbc6 {[%clk 0:02:45]} 11. Ba3 {[%clk 0:02:42]}  Na5 {[%clk 0:02:45]} 12. Nd2 {[%clk 0:02:42]}  Qd7 {[%clk 0:02:44]} 13. O-O {[%clk 0:02:39]}  O-O-O {[%clk 0:02:41]} 14. Bb4 {[%clk 0:02:39]}  Nec6 {[%clk 0:02:29]} 15. Qa6+ {[%clk 0:02:39]}  Kb8 {[%clk 0:02:29]} 16. Rfb1 {[%clk 0:02:40]}  Qc8 {[%clk 0:02:29]} 17. Qb5 {[%clk 0:02:35]}  a6 {[%clk 0:02:28]} 18. Qd3 {[%clk 0:02:34]}  Ka7 {[%clk 0:02:28]} 19. Bxa5 {[%clk 0:01:47]}  Nxa5 {[%clk 0:02:26]} 20. c4 {[%clk 0:01:47]}  dxc4 {[%clk 0:02:26]} 21. Nxc4 {[%clk 0:01:47]}  Nxc4 {[%clk 0:02:25]} 22. Qxc4 {[%clk 0:01:48]}  Qd7 {[%clk 0:02:26]} 23. c3 {[%clk 0:01:47]}  Rc8 {[%clk 0:02:20]} 24. a5 {[%clk 0:01:46]}  b5 {[%clk 0:02:11]} 25. Qc5+ {[%clk 0:01:46]}  Kb7 {[%clk 0:02:11]} 26. c4 {[%clk 0:01:46]}  c6 {[%clk 0:02:07]} 27. Qb6+ {[%clk 0:01:44]}  Ka8 {[%clk 0:02:07]} 28. Qxa6+ {[%clk 0:01:44]}  Qa7 {[%clk 0:02:07]} 29. cxb5 {[%clk 0:01:31]}  Qxa6 {[%clk 0:02:03]} 30. bxa6 {[%clk 0:01:30]}  Rc7 {[%clk 0:02:02]} 31. Rb6 {[%clk 0:01:23]}  Rd8 {[%clk 0:02:01]} 32. Rab1 {[%clk 0:01:16]}  Rxd4 {[%clk 0:01:57]} 33. Rb8+ {[%clk 0:01:15]}  Ka7 {[%clk 0:01:57]} 34. R8b7+ {[%clk 0:01:15]}  Rxb7 {[%clk 0:01:56]} 35. axb7 {[%clk 0:01:15]}  Kb8 {[%clk 0:01:55]} 36. g3 {[%clk 0:01:01]}  Ra4 {[%clk 0:01:52]} 37. Rb6 {[%clk 0:00:55]}  Rxa5 {[%clk 0:01:52]} 38. Rxc6 {[%clk 0:00:55]}  Kxb7 {[%clk 0:01:53]} 39. Rd6 {[%clk 0:00:55]}  Kc7 {[%clk 0:01:53]} 40. f4 {[%clk 0:00:55]}  Ra2 {[%clk 0:01:50]} 41. Rd3 {[%clk 0:00:52]}  g6 {[%clk 0:01:49]} 42. Rc3+ {[%clk 0:00:52]}  Kd7 {[%clk 0:01:49]} 43. Rb3 {[%clk 0:00:49]}  Kc6 {[%clk 0:01:44]} 44. Rd3 {[%clk 0:00:41]}  h5 {[%clk 0:01:40]} 45. Rd8 {[%clk 0:00:37]}  Kc5 {[%clk 0:01:38]} 46. Rd7 {[%clk 0:00:28]}  h4 {[%clk 0:01:36]} 47. gxh4 {[%clk 0:00:27]}  Kc4 {[%clk 0:01:35]} 48. Rxf7 {[%clk 0:00:11]}  Kd4 {[%clk 0:01:36]} 49. Rf6 {[%clk 0:00:12]}  Ke3 {[%clk 0:01:36]} 50. Rxg6 {[%clk 0:00:11]}  Kf3 {[%clk 0:01:36]} 51. Rg3+ {[%clk 0:00:11]}  Kxf4 {[%clk 0:01:37]} 52. h5 {[%clk 0:00:11]}  Kxe5 {[%clk 0:01:36]} 53. h6 {[%clk 0:00:11]}  Ra8 {[%clk 0:01:33]} 54. h4 {[%clk 0:00:12]}  Rh8 {[%clk 0:01:33]} 55. Rg6 {[%clk 0:00:12]}  Kf5 {[%clk 0:01:34]} 56. h5 {[%clk 0:00:13]}  e5 {[%clk 0:01:34]} 57. Kf2 {[%clk 0:00:13]}  Rh7 {[%clk 0:01:32]} 58. Ke3 {[%clk 0:00:13]}  e4 {[%clk 0:01:31]} 59. Ra6 {[%clk 0:00:13]}  Re7 {[%clk 0:01:26]} 60. Ra5+ {[%clk 0:00:11]}  Kg4 {[%clk 0:01:26]} 61. Rc5 {[%clk 0:00:08]}  Kh4 {[%clk 0:01:24]} 62. Rd5 {[%clk 0:00:06]}  Kg4 {[%clk 0:01:24]} 63. Rc5 {[%clk 0:00:06]}  Kh4 {[%clk 0:01:24]} 64. Rf5 {[%clk 0:00:07]}  Kg4 {[%clk 0:01:24]} 65. Ra5 {[%clk 0:00:07]}  Kh4 {[%clk 0:01:22]} 66. Rb5 {[%clk 0:00:06]}  Kg4 {[%clk 0:01:22]} 67. Rc5 {[%clk 0:00:06]} 1/2-1/2


[Site "https://www.chess.com"]